bitfinex/quotes_SOLUSD_20240808
["timestamp","ask_amount","ask_price","bid_price","bid_amount"]
[1723126512652,6.4214,155.73,155.64,2.59807049]
[1723126512852,15.4121,155.71,155.59,55.87]
[1723126513758,0.1,155.75,155.54,20.0]
[1723126513759,6.4239,155.67,155.54,20.0]
[1723126513958,15.4121,155.69,155.52,35.87]
[1723126514277,15.4121,155.67,155.5,40.0]
[1723126514573,15.4121,155.67,155.54,20.0]
[1723126515076,23.1657,155.65,155.49,22.53980278]
[1723126515391,20.0,155.64,155.51,35.87]
[1723126515676,23.1657,155.65,155.52,41.28515863]
[1723126515883,23.1657,155.65,155.54,55.87]
[1723126516049,23.1657,155.65,155.56,20.0]
[1723126516251,16.6452,155.65,155.58,20.0]
[1723126516454,16.6452,155.65,155.59,65.34]
[1723126518578,16.6452,155.65,155.59,65.17]
[1723126518880,16.6452,155.65,155.55,16.6452]
[1723126519087,6.3523,155.64,155.55,16.6452]
[1723126519258,6.3523,155.64,155.52,1.28539236]
[1723126519881,6.3523,155.64,155.51,38.40837567]
[1723126520181,6.1274,155.62,155.48,42.58771309]
[1723126520383,6.1274,155.62,155.49,1.28556347]
[1723126520687,6.1274,155.62,155.54,35.87]
[1723126520882,6.1274,155.62,155.55,1.2851764]
[1723126521393,6.1274,155.62,155.54,57.15510655]
[1723126521584,6.1274,155.62,155.55,20.0]
[1723126521795,6.1274,155.62,155.56,45.0]
[1723126522080,6.1274,155.62,155.57,20.0]
[1723126522267,6.1274,155.62,155.58,45.0]
[1723126522885,6.1274,155.62,155.55,20.0]
[1723126523296,6.1274,155.62,155.56,45.0]
[1723126523460,6.1274,155.62,155.51,50.9198]
[1723126523663,6.1274,155.62,155.52,45.17]
[1723126523872,6.1274,155.62,155.51,38.51365086]
[1723126524059,6.1274,155.62,155.52,21.28538955]
[1723126524371,6.1274,155.62,155.54,55.87]
[1723126524567,6.1274,155.62,155.55,1.28518468]
[1723126524908,6.1274,155.62,155.55,21.28518468]
[1723126525189,6.1274,155.62,155.56,45.17]
[1723126525372,6.1274,155.62,155.57,1.28512432]
[1723126525580,15.0498,155.63,155.58,1.4550914]
[1723126525899,260.7,155.69,155.59,20.17]
[1723126525900,6.2309,155.66,155.59,20.17]
[1723126526061,6.2309,155.66,155.6,66.28477895]
[1723126526261,6.2309,155.66,155.61,1.28477972]
[1723126526457,6.2309,155.66,155.6,65.0]
[1723126527067,6.2309,155.66,155.6,45.0]
[1723126527274,6.2309,155.66,155.57,2.65667348]
[1723126527475,6.2309,155.66,155.56,0.17]
[1723126527773,6.2309,155.66,155.58,40.0]
[1723126528083,6.2309,155.66,155.6,55.87]
[1723126528383,6.2309,155.66,155.61,66.62473538]
[1723126528976,6.2309,155.66,155.63,20.0]
[1723126529177,15.7255,155.67,155.64,65.0]
[1723126529373,22.2428,155.75,155.65,0.17]
[1723126529576,22.2428,155.75,155.66,20.0]
[1723126529869,22.2428,155.75,155.67,65.34]
[1723126530567,22.2428,155.75,155.69,20.0]
[1723126530765,22.2428,155.75,155.7,45.0]
[1723126532069,22.2428,155.75,155.71,20.0]
[1723126532420,22.2428,155.75,155.72,45.0]
[1723126533399,38.73,155.86,155.72,45.0]
[1723126533400,0.8461113,155.87,155.74,55.87]
[1723126533572,0.8461113,155.87,155.82,35.87]
[1723126533770,16.1721,155.92,155.83,66.4528389]
[1723126533988,16.1721,155.92,155.85,35.87]
[1723126534184,0.8461113,156.03,155.88,35.87]
[1723126534185,15.8256,156.01,155.88,35.87]
[1723126534377,15.8256,156.01,155.9,20.0]
[1723126534579,15.8256,156.01,155.91,46.28205231]
[1723126535167,15.8256,156.01,155.92,20.17]
[1723126535387,15.8256,156.01,155.94,35.87]
[1723126535581,0.8461113,156.03,155.95,21.62188268]
[1723126535781,0.8461113,156.03,155.96,46.28164629]
[1723126536095,0.8461113,156.03,155.96,45.0]
[1723126536308,0.8461113,156.03,155.95,21.28198389]
[1723126536607,0.8461113,156.03,155.96,46.28198389]
[1723126536809,0.8461113,156.03,155.92,22.65634655]
[1723126537021,0.8461113,156.03,155.93,1.28195138]
[1723126537192,0.8461113,156.03,155.94,0.34]
[1723126537512,0.8461113,156.03,155.94,20.17]
[1723126537715,0.8461113,156.03,155.95,46.45183947]
[1723126537918,0.8461113,156.03,155.96,20.17]
[1723126538124,0.8461113,156.03,155.97,46.28178414]
[1723126538324,0.8461113,156.03,155.98,40.17]
[1723126538490,32.0041,156.23,156.0,20.0]
[1723126538491,22.7892,156.12,156.0,20.0]
[1723126538689,22.7892,156.12,156.01,41.45116086]
[1723126538888,16.5982,156.12,156.03,20.0]
[1723126539220,16.5982,156.12,156.04,20.34]
[1723126539381,16.5982,156.12,156.04,45.0]
[1723126539580,16.5982,156.12,156.05,1.28120554]
[1723126539995,16.5982,156.12,155.95,20.0]
[1723126540283,16.5982,156.12,155.96,21.28160314]
[1723126540599,16.5982,156.12,156.02,20.0]
[1723126540792,16.5982,156.12,156.03,21.28098855]
[1723126540996,16.5982,156.12,156.04,1.28106937]
[1723126541193,16.5982,156.12,156.03,20.0]
[1723126541516,16.5982,156.12,155.99,21.28139065]
[1723126541681,16.5982,156.12,156.0,65.34]
[1723126541885,16.5982,156.12,156.02,20.0]
[1723126542082,16.5982,156.12,156.03,66.62102995]
[1723126542485,16.5982,156.12,156.03,66.45102995]
[1723126542687,16.5982,156.12,156.03,45.17]
[1723126542909,16.5982,156.12,156.04,21.28125368]
[1723126543090,16.5982,156.12,156.05,45.0]
[1723126543293,16.5982,156.12,156.05,46.28081811]
[1723126543498,16.5982,156.12,156.05,45.0]
[1723126543887,16.5982,156.12,156.01,1.28113901]
[1723126544194,16.5982,156.12,155.99,1.28137145]
[1723126544403,16.5982,156.12,155.95,20.0]
[1723126544606,16.5982,156.12,155.96,1.2814282]
[1723126544906,16.5982,156.12,155.97,20.0]
[1723126545105,23.0036,156.12,155.98,1.28150976]
[1723126545304,16.5982,156.12,155.97,21.28162474]
[1723126545503,6.0399,156.1,155.96,1.28170427]
[1723126545706,12.4463,156.1,155.93,21.28174411]
[1723126546015,0.34,156.09,155.93,1.28184128]
[1723126546223,16.3062,156.08,155.91,20.0]
[1723126546398,6.4094,156.02,155.91,16.5982]
[1723126546596,15.0004,155.99,155.91,16.5982]
[1723126547097,15.0004,155.99,155.85,20.0]
[1723126547517,15.0004,155.99,155.88,35.0004]
[1723126547839,15.0573,156.06,155.94,40.0]
[1723126547993,15.0573,156.06,155.95,1.2816398]
[1723126548321,15.0573,156.06,155.97,20.0]
[1723126548512,21.9328,156.11,155.98,1.28138782]
[1723126548720,21.9328,156.11,155.97,20.0]
[1723126549017,21.9328,156.11,155.98,45.0]
[1723126549192,21.9328,156.11,155.99,20.0]
[1723126549395,28.3385,156.11,156.0,45.0]
[1723126549720,21.9328,156.11,156.0,45.0]
[1723126549912,28.3386,156.11,155.99,20.0]
[1723126550111,21.9328,156.11,156.0,45.0]
[1723126550419,21.9328,156.11,155.99,45.0]
[1723126550723,21.9328,156.11,156.0,20.0]
[1723126550894,21.9328,156.11,156.01,45.0]
[1723126551592,28.3388,156.11,156.01,45.0]
[1723126551814,6.4065,156.09,155.96,20.0]
[1723126552008,0.17,156.1,155.97,20.0]
[1723126552203,0.17,156.1,155.97,21.28185619]
[1723126552509,21.9328,156.11,155.97,21.28185619]
[1723126552698,21.9328,156.11,155.97,20.0]
[1723126553117,21.9328,156.11,155.98,46.45170245]
[1723126553430,21.9328,156.11,155.99,20.0]
[1723126553724,21.9328,156.11,156.0,45.0]
[1723126553894,6.4069,156.08,155.99,20.0]
[1723126554095,6.4066,156.09,155.95,20.0]
[1723126554295,0.17,156.1,155.96,1.45187626]
[1723126554495,21.9328,156.11,155.96,20.17]
[1723126554722,21.9328,156.11,155.97,20.0]
[1723126555228,6.4065,156.09,155.97,20.0]
[1723126555404,28.3388,156.11,155.97,1.28181789]
[1723126555598,6.4061,156.1,155.95,21.28168603]
[1723126555813,6.4069,156.08,155.93,1.28186896]
[1723126556000,6.407,156.08,155.94,0.17]
[1723126556316,6.4078,156.06,155.91,1.28201061]
[1723126556522,0.17,156.05,155.9,20.0]
[1723126556726,6.2578,156.02,155.9,20.0]
[1723126556930,6.2578,156.02,155.9,21.28221854]
[1723126557128,6.2578,156.02,155.92,20.0]
[1723126557444,6.2578,156.02,155.93,1.2818797]
[1723126557602,6.2578,156.02,155.88,15.0004]
[1723126557603,6.2578,156.02,155.91,20.0]
[1723126557924,6.2578,156.02,155.91,21.28208154]
[1723126558129,6.2578,156.02,155.92,20.0]
[1723126558310,6.2578,156.02,155.93,1.28198456]
[1723126558515,6.2578,156.02,155.93,21.28198456]
[1723126558813,6.2578,156.02,155.94,20.0]
[1723126559141,6.2578,156.02,155.95,46.28196662]
[1723126559301,6.2578,156.02,155.96,20.0]
[1723126559622,6.2578,156.02,155.96,21.28179935]
[1723126559810,6.2578,156.02,155.97,45.0]
[1723126560013,6.2578,156.02,155.98,20.0]
[1723126560218,15.0476,156.04,155.99,45.0]
[1723126560523,15.0476,156.04,156.0,20.0]
[1723126560729,15.0476,156.04,156.01,45.0]
[1723126560904,6.0706,156.07,156.02,20.0]
[1723126561401,15.1579,156.09,156.02,20.0]
[1723126561402,15.1579,156.09,156.03,45.0]
[1723126561600,15.1579,156.09,156.03,45.17]
[1723126561903,15.1579,156.09,156.04,20.0]
[1723126562104,15.1579,156.09,156.05,45.0]
[1723126562503,15.1579,156.09,156.04,20.0]
[1723126562844,6.3212,156.12,156.05,45.0]
[1723126563136,6.3212,156.12,156.06,20.0]
[1723126563508,6.3212,156.12,155.99,20.0]
[1723126563835,6.3212,156.12,155.97,20.0]
[1723126564019,6.4058,156.11,155.97,20.0]
[1723126564217,6.4071,156.08,155.94,63.41]
[1723126564407,6.6612,156.12,155.95,1.28188083]
[1723126564606,13.0666,156.12,155.95,21.28188083]
[1723126564843,6.4065,156.1,155.95,1.28188083]
[1723126565008,6.4912,156.12,155.95,21.28188083]
[1723126565342,6.3212,156.12,155.97,20.0]
[1723126565511,6.3212,156.12,155.99,20.0]
[1723126565830,6.3212,156.12,156.02,20.0]
[1723126566133,6.3212,156.12,156.03,45.0]
[1723126566302,6.3212,156.12,156.04,20.0]
[1723126566509,6.3212,156.12,156.01,1.28122349]
[1723126566806,6.3212,156.12,156.0,65.0]
[1723126567114,6.3212,156.12,156.01,1.28145465]
[1723126567314,6.3212,156.12,156.02,41.6213427]
[1723126567618,6.3212,156.12,156.03,65.0]
[1723126567830,6.3212,156.12,156.03,66.28114588]
[1723126568134,6.3212,156.12,156.04,0.34]
[1723126568505,6.3212,156.12,156.04,0.17]
[1723126568829,6.3212,156.12,156.03,66.28109802]
[1723126569035,6.3212,156.12,156.03,65.0]
[1723126569210,6.3212,156.12,156.03,20.0]
[1723126569604,6.3212,156.12,156.03,1.28117199]
[1723126569839,6.3212,156.12,156.02,20.17]
[1723126570204,6.3212,156.12,155.89,25.7413]
[1723126570205,6.3212,156.12,155.99,20.0]
[1723126570452,6.3212,156.12,155.96,1.28158487]
[1723126570605,6.3212,156.12,155.98,20.0]
[1723126570806,6.3212,156.12,156.0,20.0]
[1723126571037,6.3212,156.12,156.01,1.28127508]
[1723126571215,6.3212,156.12,156.02,1.28123197]
[1723126571722,6.3212,156.12,156.0,1.28123415]
[1723126572034,6.3212,156.12,156.03,20.0]
[1723126572239,15.3514,156.14,156.05,20.0]
[1723126572402,15.3514,156.14,156.06,1.28085283]
[1723126572606,15.3514,156.14,156.06,21.28085283]
[1723126572807,6.134,156.17,156.07,41.28084892]
[1723126573041,6.134,156.17,156.08,65.34]
[1723126573342,6.134,156.17,156.09,1.28057717]
[1723126573916,6.134,156.17,156.08,65.34]
[1723126573917,6.134,156.17,156.08,65.0]
[1723126574117,0.8461113,156.18,156.08,66.28080192]
[1723126574318,0.8461113,156.18,156.11,20.0]
[1723126574538,0.8461113,156.18,156.12,66.29043132]
[1723126575450,0.8461113,156.18,156.12,65.34]
[1723126575651,0.8461113,156.18,156.16,40.0]
[1723126575819,0.8461113,156.18,156.17,65.34]
[1723126576137,0.8461113,156.18,156.17,66.27995136]
[1723126576314,0.8461113,156.18,156.17,66.61995136]
[1723126576837,15.5011,156.27,156.18,20.0]
[1723126577011,15.5011,156.27,156.19,66.61978746]
[1723126577207,0.8461113,156.34,156.19,66.61978746]
[1723126577423,0.8461113,156.34,156.25,40.0]
[1723126577651,0.8461113,156.34,156.28,20.0]
[1723126577813,0.8461113,156.34,156.29,66.27883583]
[1723126578015,0.8461113,156.34,156.3,1.2791221]
[1723126578320,0.8461113,156.34,156.27,1.27931873]
[1723126578639,0.8461113,156.34,156.28,0.17]
[1723126578839,0.8461113,156.34,156.29,1.27901533]
[1723126579048,0.8461113,156.34,156.3,1.61887872]
[1723126579229,0.8461113,156.34,156.3,21.61887872]
[1723126579555,0.8461113,156.34,156.31,65.0]
[1723126579709,0.8461113,156.34,156.32,21.61876389]
[1723126579908,15.4982,156.44,156.33,46.2786693]
[1723126580114,15.4982,156.44,156.34,20.17]
[1723126580313,15.4982,156.44,156.35,86.27846436]
[1723126580613,14.4982,156.44,156.36,21.44834569]
[1723126580809,14.4982,156.44,156.37,45.0]
[1723126581634,14.4982,156.44,156.38,1.27847798]
[1723126581847,14.4982,156.44,156.38,21.27847798]
[1723126582023,14.4982,156.44,156.39,45.0]
[1723126582227,0.5633083,156.45,156.4,21.27831767]
[1723126582431,0.5633083,156.45,156.41,45.0]
[1723126582624,0.5633083,156.45,156.42,21.27821049]
[1723126582940,0.5633083,156.45,156.42,1.27822967]
[1723126583141,0.0633083,156.45,156.38,20.0]
[1723126583327,0.0633083,156.45,156.39,46.44817991]
[1723126583529,0.0633083,156.45,156.4,21.27820746]
[1723126583725,0.0633083,156.45,156.41,45.0]
[1723126584032,0.0633083,156.45,156.35,22.5616746]
[1723126584235,0.0633083,156.45,156.36,20.17]
[1723126584550,0.0633083,156.45,156.36,1.27847235]
[1723126584928,0.0633083,156.45,156.37,20.0]
[1723126585124,0.0633083,156.45,156.34,45.93753793]
[1723126585125,0.0633083,156.45,156.39,20.0]
[1723126585323,0.0633083,156.45,156.38,64.68805722]
[1723126585324,0.0633083,156.45,156.4,1.27800676]
[1723126585625,0.0633083,156.45,156.35,21.27832763]
[1723126585933,0.0633083,156.45,156.36,1.27849936]
[1723126586250,0.0633083,156.45,156.38,40.0]
[1723126586419,0.0633083,156.45,156.39,1.2780158]
[1723126586743,0.0633083,156.45,156.4,1.27815064]
[1723126586933,0.0633083,156.45,156.4,1.27823633]
[1723126587315,0.1,156.58,156.4,1.27823633]
[1723126587316,21.6289,156.54,156.41,63.75]
[1723126587518,21.6289,156.54,156.42,46.27784737]
[1723126587752,21.6289,156.54,156.43,40.34]
[1723126587953,21.6289,156.54,156.45,20.0]
[1723126588124,15.3422,156.54,156.47,20.0]
[1723126588320,15.3422,156.54,156.48,65.0]
[1723126588531,15.3422,156.54,156.46,20.0]
[1723126588848,6.143,156.53,156.37,40.0]
[1723126589219,6.143,156.53,156.37,20.0]
[1723126589423,6.3896,156.51,156.35,20.0]
[1723126589725,6.143,156.53,156.36,0.6659892]
[1723126589918,6.143,156.53,156.37,20.66647796]
[1723126590118,6.143,156.53,156.38,1.27716285]
[1723126590553,6.143,156.53,156.39,20.0]
[1723126590845,6.3898,156.5,156.36,20.0]
[1723126591041,6.3894,156.51,156.36,20.0]
[1723126591219,6.143,156.53,156.35,20.0]
[1723126591424,6.143,156.53,156.34,20.0]
[1723126591425,15.5235,156.49,156.34,1.27848235]
[1723126591625,15.5235,156.49,156.36,20.0]
[1723126591821,15.5235,156.49,156.35,35.5235]
[1723126592056,15.5235,156.49,156.36,0.90007267]
[1723126592255,15.5235,156.49,156.35,36.42520055]
[1723126592568,15.5235,156.49,156.36,1.06371163]
[1723126592854,6.0705,156.48,156.35,15.969]
[1723126593027,6.0705,156.48,156.36,1.27871052]
[1723126593934,6.2154,156.41,156.34,15.9711]
[1723126594148,15.6247,156.4,156.34,15.9711]
[1723126594529,15.6247,156.4,156.27,2.56957385]
[1723126594736,15.6247,156.4,156.29,40.0]
[1723126594946,15.6247,156.4,156.31,20.0]
[1723126595155,15.6247,156.4,156.32,1.27872411]
[1723126595439,15.6247,156.4,156.33,1.27877548]
[1723126595954,15.6247,156.4,156.34,0.17]
[1723126596131,15.6247,156.4,156.34,65.34]
[1723126596332,15.6247,156.4,156.35,45.0]
[1723126596659,15.6247,156.4,156.36,20.0]
[1723126597160,15.6247,156.4,156.37,1.27884953]
[1723126597752,15.6247,156.4,156.32,22.52427481]
[1723126598158,15.6247,156.4,156.29,21.27893392]
[1723126598328,15.6247,156.4,156.29,23.87793885]
[1723126598656,15.6247,156.4,156.3,1.27902011]
[1723126598830,15.6247,156.4,156.31,40.0]
[1723126599030,15.6247,156.4,156.32,21.27870489]
[1723126599247,15.6247,156.4,156.33,1.27870504]
[1723126599651,15.6247,156.4,156.35,20.0]
[1723126599847,15.6247,156.4,156.36,65.0]
[1723126600050,15.6247,156.4,156.36,45.0]
[1723126600247,15.6247,156.4,156.31,20.0]
[1723126600248,15.6247,156.4,156.32,1.27878167]
[1723126600446,15.6247,156.4,156.33,1.27878167]
[1723126601135,15.6247,156.4,156.31,20.0]
[1723126601136,15.6247,156.4,156.31,21.27875013]
[1723126601455,15.6247,156.4,156.29,2.59900493]
[1723126601655,15.6247,156.4,156.25,21.1898673]
[1723126601860,15.6247,156.4,156.25,20.0]
[1723126602060,6.3943,156.39,156.26,1.27938079]
[1723126602360,16.3432,156.36,156.24,6.68228151]
[1723126602666,0.17,156.38,156.25,1.27969869]
[1723126602667,22.361,156.32,156.25,1.27969869]
[1723126602833,22.361,156.5,156.36,20.0]
[1723126603034,22.361,156.5,156.31,43.41]
[1723126603035,16.3432,156.49,156.31,20.0]
[1723126603229,6.392,156.45,156.31,20.0]
[1723126603456,16.3169,156.42,156.27,1.27891362]
[1723126603786,6.352,156.41,156.3,41.27891362]
[1723126604061,6.352,156.41,156.3,20.0]
[1723126604364,6.3939,156.4,156.26,2.61681799]
[1723126604533,16.3169,156.4,156.24,26.68228151]
[1723126604734,6.3942,156.39,156.24,29.29573665]
[1723126605051,16.3169,156.4,156.28,40.0]
[1723126605252,6.352,156.44,156.32,20.0]
[1723126605458,6.352,156.44,156.33,1.27849496]
[1723126605953,6.352,156.44,156.34,1.44851746]
[1723126606259,6.352,156.44,156.35,0.17]
[1723126606434,6.352,156.44,156.36,1.2784295]
[1723126607249,6.352,156.44,156.37,20.0]
[1723126607462,16.3169,156.45,156.4,20.0]
[1723126607650,3.44233878,156.45,156.41,21.44820858]
[1723126607962,6.3245,156.49,156.42,45.0]
[1723126608168,0.1,156.58,156.43,21.44784406]
[1723126608347,0.1,156.58,156.44,45.17]
[1723126608665,0.1,156.58,156.45,21.27779175]
[1723126608863,0.1,156.58,156.46,46.27771666]
[1723126609061,0.1,156.58,156.47,20.0]
[1723126609373,0.1,156.58,156.48,1.2777574]
[1723126609578,0.1,156.58,156.49,1.27774922]
[1723126609744,0.9163492,156.62,156.51,40.0]
[1723126609942,0.9163492,156.62,156.52,66.61693413]
[1723126610243,0.9163492,156.62,156.52,66.44693413]
[1723126610445,0.9163492,156.62,156.53,0.17]
[1723126610651,0.9163492,156.62,156.54,1.27690703]
[1723126610850,0.9163492,156.62,156.55,1.61684779]
[1723126611059,0.9163492,156.62,156.55,21.61684779]
[1723126611288,0.9163492,156.62,156.56,45.0]
[1723126611439,0.9163492,156.62,156.57,21.27676918]
[1723126611647,0.9163492,156.62,156.58,45.0]
[1723126611848,0.9163492,156.62,156.59,1.2766061]
[1723126612569,0.9163492,156.62,156.59,41.2766061]
[1723126612742,6.3085,156.7,156.6,45.0]
[1723126612942,6.3085,156.7,156.61,20.0]
[1723126613355,6.3085,156.7,156.61,21.27667966]
[1723126613549,6.3085,156.7,156.61,20.0]
[1723126613860,6.3085,156.7,156.62,1.27660901]
[1723126614068,6.3085,156.7,156.61,20.0]
[1723126614442,6.3085,156.7,156.62,1.27677418]
[1723126614855,6.3085,156.7,156.62,46.27677418]
[1723126615057,6.3085,156.7,156.63,20.0]
[1723126615265,6.3085,156.7,156.64,1.27655191]
[1723126615455,6.3085,156.7,156.63,20.0]
[1723126615650,6.3085,156.7,156.62,45.0]
[1723126615859,6.3085,156.7,156.58,1.27650048]
[1723126616171,10.0010702,156.78,156.63,43.41]
[1723126616469,0.9163492,156.79,156.63,43.41]
[1723126616470,0.9163492,156.79,156.66,20.0]
[1723126616669,0.9163492,156.79,156.67,21.44568339]
[1723126616840,0.9163492,156.79,156.67,20.0]
[1723126617371,0.9163492,156.79,156.68,45.0]
[1723126617741,0.9163492,156.79,156.69,20.0]
[1723126618179,0.9163492,156.79,156.68,45.0]
[1723126618473,6.3791,156.77,156.64,2.64271154]
[1723126618651,7.2943492,156.79,156.65,0.52288983]
[1723126618849,0.9163492,156.79,156.65,0.52288983]
[1723126619074,0.9163492,156.79,156.64,20.17]
[1723126619268,0.9163492,156.79,156.65,1.61609103]
[1723126619442,0.9163492,156.79,156.65,1.27609103]
[1723126619643,6.38,156.74,156.65,1.27609103]
[1723126619867,6.3791,156.77,156.6,1.27609102]
[1723126620066,0.9163492,156.79,156.61,21.27600953]
[1723126620272,0.9163492,156.79,156.62,20.0]
[1723126620472,0.9163492,156.79,156.65,20.0]
[1723126620659,0.9163492,156.79,156.66,21.27566746]
[1723126620855,0.9163492,156.79,156.66,1.27566746]
[1723126621166,0.9163492,156.79,156.64,1.2760722]
[1723126621471,0.9163492,156.79,156.65,1.44616533]
[1723126623083,0.9163492,156.79,156.65,0.17]
[1723126623263,0.9163492,156.79,156.64,66.27607394]
[1723126623459,64.678,156.78,156.59,20.0]
[1723126623646,21.268,156.78,156.59,22.61201277]
[1723126623849,6.3793,156.76,156.61,1.27619916]
[1723126624074,21.268,156.78,156.6,21.27630086]
[1723126624276,27.6466,156.78,156.61,1.27646974]
[1723126624583,6.3805,156.73,156.59,29.44382251]
[1723126624880,6.3808,156.72,156.59,25.555596]
[1723126625078,15.9493,156.75,156.59,25.555596]
[1723126625390,6.6406,156.64,156.59,25.555596]
[1723126625547,6.6406,156.64,156.54,22.6441803]
[1723126625755,6.6406,156.64,156.56,40.0]
[1723126626071,15.8459,156.65,156.58,20.0]
[1723126626267,6.4563,156.68,156.58,41.27669205]
[1723126626580,6.4563,156.68,156.61,20.0]
[1723126626882,6.4563,156.68,156.53,28.12442]
[1723126626883,6.4563,156.68,156.54,1.27646848]
[1723126627086,6.4563,156.68,156.54,1.27688773]
[1723126627304,6.4563,156.68,156.53,3.84589067]
[1723126627453,6.4563,156.68,156.53,2.568824]
[1723126627656,6.4563,156.68,156.51,1.27712235]
[1723126627963,6.4563,156.68,156.52,1.27733193]
[1723126628284,119.9145,156.67,156.47,1.27689396]
[1723126628478,12.6316,156.6,156.46,1.27748466]
[1723126628684,16.4045,156.59,156.46,1.27748466]
[1723126628859,16.4045,156.59,156.47,20.0]
[1723126629056,16.4045,156.59,156.5,40.0]
[1723126629262,6.2459,156.6,156.52,40.0]
[1723126629576,6.2459,156.6,156.53,1.27697544]
[1723126630275,21.4602,156.65,156.54,20.0]
[1723126630483,21.4602,156.65,156.53,20.0]
[1723126630692,21.4602,156.65,156.51,21.27713436]
[1723126630990,21.4602,156.65,156.52,1.27726791]
[1723126631488,21.4602,156.65,156.49,1.27737091]
[1723126631699,6.3856,156.61,156.49,1.27737091]
[1723126631874,20.17,156.64,156.49,1.27737091]
[1723126632069,20.0,156.64,156.46,3.87455921]
[1723126632264,0.17,156.63,156.46,1.27742226]
[1723126632582,6.3853,156.61,156.46,1.27742226]
[1723126632789,0.17,156.63,156.46,1.27742226]
[1723126632980,21.4602,156.65,156.49,20.0]
[1723126633185,21.4602,156.65,156.5,1.27709576]
[1723126633492,21.4602,156.65,156.51,20.0]
[1723126633695,21.4602,156.65,156.52,1.27693467]
[1723126634368,21.4602,156.65,156.52,46.27693466]
[1723126634559,21.4602,156.65,156.53,20.0]
[1723126634765,27.8438,156.65,156.54,46.27711836]
[1723126635165,21.4602,156.65,156.55,20.0]
[1723126635380,21.4602,156.65,156.56,45.0]
[1723126635691,21.4602,156.65,156.51,0.34]
[1723126635898,21.4602,156.65,156.51,20.0]
[1723126636062,21.4602,156.65,156.51,21.27725992]
[1723126636265,21.4602,156.65,156.51,1.27725992]
[1723126636468,6.3869,156.57,156.41,26.348]
[1723126636687,6.3869,156.57,156.42,20.0]
[1723126636888,6.3869,156.57,156.41,26.348]
[1723126637065,54.4739,156.61,156.41,26.348]
[1723126637266,20.34,156.6,156.42,2.64397413]
[1723126637479,6.3877,156.55,156.4,43.41]
[1723126637669,58.85,156.6,156.4,43.41]
[1723126637971,6.3853,156.61,156.46,0.99460298]
[1723126638170,21.5598,156.62,156.46,20.99460298]
[1723126638390,27.945,156.62,156.46,20.99460298]
[1723126638692,21.5598,156.62,156.47,20.0]
[1723126638903,27.9448,156.62,156.47,21.27745609]
[1723126639082,21.5598,156.62,156.48,20.0]
[1723126639390,21.5598,156.62,156.49,66.61728635]
[1723126639599,21.5598,156.62,156.49,46.61728635]
[1723126639893,21.5598,156.62,156.5,20.0]
[1723126640103,21.5598,156.62,156.51,45.0]
[1723126640281,21.5598,156.62,156.52,21.2773246]
[1723126640590,21.5598,156.62,156.46,9.28686626]
[1723126640795,21.5598,156.62,156.47,20.0]
[1723126641092,21.5598,156.62,156.49,40.0]
[1723126641266,21.5598,156.62,156.5,21.27723556]
[1723126641469,60.0698,156.62,156.46,6.6755726]
[1723126641805,38.51,156.6,156.46,6.6755726]
[1723126641979,45.0,156.61,156.41,20.0]
[1723126641980,58.51,156.59,156.41,41.27800439]
[1723126642297,20.0,156.59,156.45,6.67816196]
[1723126642510,20.0,156.59,156.43,20.0]
[1723126642511,20.0,156.59,156.43,41.2777172]
[1723126642669,38.54677109,156.61,156.45,6.67762661]